[Event "Early-Titled-Tuesday-Blitz-September-05-2023"]
[Site "Chess.com"]
[Date "2023.09.05"]
[Round "10"]
[White "NovikovaGalina"]
[Black "Chessbard1972"]
[Result "1-0"]
[WhiteElo "2422"]
[BlackElo "2505"]
[TimeControl "180+1"]
[EndTime "9:55:57 PDT"]
[Termination "NovikovaGalina won by checkmate"]

1. e4 {[%clk 0:03:00.9]} 1... e5 {[%clk 0:02:59.9]} 2. Nf3 {[%clk 0:03:01.4]}
2... Nc6 {[%clk 0:02:59.4]} 3. Bc4 {[%clk 0:03:02]} 3... Nf6 {[%clk 0:02:59]} 4.
Ng5 {[%clk 0:03:01.6]} 4... d5 {[%clk 0:02:58.2]} 5. exd5 {[%clk 0:03:02.4]}
5... Nd4 {[%clk 0:02:58]} 6. c3 {[%clk 0:03:01.1]} 6... b5 {[%clk 0:02:57.8]} 7.
Bf1 {[%clk 0:03:00.1]} 7... Nxd5 {[%clk 0:02:57.1]} 8. Ne4 {[%clk 0:02:58.9]}
8... Ne6 {[%clk 0:02:52.7]} 9. Bxb5+ {[%clk 0:02:54.8]} 9... Bd7 {[%clk
0:02:52.4]} 10. Bxd7+ {[%clk 0:02:53.8]} 10... Qxd7 {[%clk 0:02:52]} 11. O-O
{[%clk 0:02:54.7]} 11... f5 {[%clk 0:02:50.2]} 12. Ng3 {[%clk 0:02:52.3]} 12...
g6 {[%clk 0:02:47.9]} 13. d4 {[%clk 0:02:51.7]} 13... e4 {[%clk 0:02:45.6]} 14.
Nd2 {[%clk 0:02:44.1]} 14... Bg7 {[%clk 0:02:38.5]} 15. Nc4 {[%clk 0:02:43.3]}
15... O-O {[%clk 0:02:31.5]} 16. Ne5 {[%clk 0:02:40.1]} 16... Qd6 {[%clk
0:02:31.5]} 17. Nc4 {[%clk 0:02:06.4]} 17... Qe7 {[%clk 0:02:26.9]} 18. Ne3
{[%clk 0:02:03.4]} 18... Ndf4 {[%clk 0:02:24]} 19. Qb3 {[%clk 0:01:55.5]} 19...
Kh8 {[%clk 0:02:22.7]} 20. Nd5 {[%clk 0:01:52]} 20... Nxd5 {[%clk 0:02:19.2]}
21. Qxd5 {[%clk 0:01:52.9]} 21... Rad8 {[%clk 0:02:13.8]} 22. Qa5 {[%clk
0:01:50.4]} 22... c5 {[%clk 0:02:11.6]} 23. dxc5 {[%clk 0:01:44.5]} 23... Nxc5
{[%clk 0:02:10.8]} 24. Bg5 {[%clk 0:01:24.8]} 24... Qxg5 {[%clk 0:02:05.2]} 25.
Qxc5 {[%clk 0:01:25.2]} 25... Rde8 {[%clk 0:01:55.6]} 26. Rfe1 {[%clk 0:01:14]}
26... a6 {[%clk 0:01:52.1]} 27. Nxe4 {[%clk 0:01:09.4]} 27... Qg4 {[%clk
0:01:41.2]} 28. Nd6 {[%clk 0:00:50.9]} 28... Rd8 {[%clk 0:01:31.5]} 29. h3
{[%clk 0:00:27.2]} 29... Qf4 {[%clk 0:01:30.6]} 30. Rad1 {[%clk 0:00:25]} 30...
h6 {[%clk 0:01:17.2]} 31. Nf7+ {[%clk 0:00:24]} 31... Rxf7 {[%clk 0:01:13.3]}
32. Rxd8+ {[%clk 0:00:24.6]} 32... Kh7 {[%clk 0:01:14.1]} 33. Qe3 {[%clk
0:00:21.7]} 33... Qc7 {[%clk 0:01:11.9]} 34. Rd2 {[%clk 0:00:16.7]} 34... Bf6
{[%clk 0:01:08.1]} 35. Rde2 {[%clk 0:00:17.1]} 35... Rg7 {[%clk 0:00:59.3]} 36.
Qf3 {[%clk 0:00:13.6]} 36... Qc4 {[%clk 0:00:56.2]} 37. Re6 {[%clk 0:00:12.9]}
37... Bd8 {[%clk 0:00:52.3]} 38. Re8 {[%clk 0:00:12.1]} 38... Bb6 {[%clk
0:00:51.6]} 39. b3 {[%clk 0:00:11.7]} 39... Qc5 {[%clk 0:00:49.3]} 40. R1e5
{[%clk 0:00:11.3]} 40... Qc7 {[%clk 0:00:44.1]} 41. c4 {[%clk 0:00:11]} 41...
Bd4 {[%clk 0:00:43.4]} 42. Rd5 {[%clk 0:00:08]} 42... Bf6 {[%clk 0:00:41.9]} 43.
Re2 {[%clk 0:00:05.6]} 43... a5 {[%clk 0:00:37.6]} 44. Qd3 {[%clk 0:00:06.2]}
44... Qf4 {[%clk 0:00:36.3]} 45. Qe3 {[%clk 0:00:05.3]} 45... Qc7 {[%clk
0:00:33.1]} 46. Qd3 {[%clk 0:00:03.9]} 46... Qf4 {[%clk 0:00:30.8]} 47. Rd7
{[%clk 0:00:04.1]} 47... Be5 {[%clk 0:00:19.8]} 48. g3 {[%clk 0:00:03.7]} 48...
Qc1+ {[%clk 0:00:17.6]} 49. Kg2 {[%clk 0:00:03.8]} 49... Qa1 {[%clk 0:00:16.2]}
50. Rxg7+ {[%clk 0:00:04.7]} 50... Bxg7 {[%clk 0:00:16]} 51. Re7 {[%clk
0:00:04.7]} 51... Kg8 {[%clk 0:00:15.7]} 52. Qd7 {[%clk 0:00:04.8]} 52... Qf6
{[%clk 0:00:13.9]} 53. Rxg7+ {[%clk 0:00:04.5]} 53... Qxg7 {[%clk 0:00:14.2]}
54. Qxg7+ {[%clk 0:00:05]} 54... Kxg7 {[%clk 0:00:14.9]} 55. Kf3 {[%clk
0:00:05.5]} 55... Kf6 {[%clk 0:00:15.8]} 56. h4 {[%clk 0:00:04.9]} 56... Ke5
{[%clk 0:00:16.7]} 57. Ke3 {[%clk 0:00:05.2]} 57... g5 {[%clk 0:00:17.6]} 58.
hxg5 {[%clk 0:00:05.4]} 58... hxg5 {[%clk 0:00:17.4]} 59. f4+ {[%clk 0:00:04.9]}
59... gxf4+ {[%clk 0:00:17.5]} 60. gxf4+ {[%clk 0:00:05.8]} 60... Ke6 {[%clk
0:00:17.4]} 61. Kd4 {[%clk 0:00:06.7]} 61... Kd6 {[%clk 0:00:17.9]} 62. c5+
{[%clk 0:00:06.7]} 62... Kc6 {[%clk 0:00:18.5]} 63. Kc4 {[%clk 0:00:07.6]} 63...
Kc7 {[%clk 0:00:17.9]} 64. a3 {[%clk 0:00:08.2]} 64... Kb7 {[%clk 0:00:18.8]}
65. b4 {[%clk 0:00:09.1]} 65... Kc8 {[%clk 0:00:19.7]} 66. b5 {[%clk 0:00:09.6]}
66... Kc7 {[%clk 0:00:19.5]} 67. a4 {[%clk 0:00:09.3]} 67... Kd7 {[%clk
0:00:19.6]} 68. Kd5 {[%clk 0:00:09.9]} 68... Ke7 {[%clk 0:00:20.2]} 69. Ke5
{[%clk 0:00:10.3]} 69... Kd7 {[%clk 0:00:20.4]} 70. Kxf5 {[%clk 0:00:11.2]}
70... Ke7 {[%clk 0:00:21.3]} 71. Ke5 {[%clk 0:00:11.7]} 71... Kd7 {[%clk
0:00:22.2]} 72. f5 {[%clk 0:00:12.6]} 72... Ke7 {[%clk 0:00:23.1]} 73. Kd5
{[%clk 0:00:13]} 73... Kd7 {[%clk 0:00:24]} 74. f6 {[%clk 0:00:13.3]} 74... Ke8
{[%clk 0:00:24]} 75. Kc6 {[%clk 0:00:14.2]} 75... Kf7 {[%clk 0:00:24.5]} 76. Kb7
{[%clk 0:00:15.1]} 76... Kxf6 {[%clk 0:00:25.4]} 77. c6 {[%clk 0:00:15.8]} 77...
Ke5 {[%clk 0:00:26.3]} 78. c7 {[%clk 0:00:16.4]} 78... Kd4 {[%clk 0:00:27.2]}
79. c8=Q {[%clk 0:00:16.7]} 79... Ke3 {[%clk 0:00:26.6]} 80. Ka6 {[%clk
0:00:17]} 80... Kf2 {[%clk 0:00:27.5]} 81. b6 {[%clk 0:00:17.9]} 81... Kg3
{[%clk 0:00:28.4]} 82. b7 {[%clk 0:00:18.1]} 82... Kf4 {[%clk 0:00:29.3]} 83.
b8=Q+ {[%clk 0:00:14.8]} 83... Ke3 {[%clk 0:00:30.2]} 84. Qe6+ {[%clk
0:00:13.8]} 84... Kd4 {[%clk 0:00:31.1]} 85. Qd8+ {[%clk 0:00:13.3]} 85... Kc3
{[%clk 0:00:30.5]} 86. Qc6+ {[%clk 0:00:13.5]} 86... Kb2 {[%clk 0:00:30.6]} 87.
Qd4+ {[%clk 0:00:11.6]} 87... Ka2 {[%clk 0:00:29.5]} 88. Qc2+ {[%clk 0:00:11.8]}
88... Ka3 {[%clk 0:00:29.9]} 89. Qdc3# {[%clk 0:00:11.8]} 1-0

[Event "Early-Titled-Tuesday-Blitz-September-05-2023"]
[Site "Chess.com"]
[Date "2023.09.05"]
[Round "10"]
[White "AlexPapasimakopoulos"]
[Black "Duhless"]
[Result "1-0"]
[WhiteElo "2759"]
[BlackElo "2986"]
[TimeControl "180+1"]
[EndTime "9:56:03 PDT"]
[Termination "AlexPapasimakopoulos won by resignation"]

1. d4 {[%clk 0:03:00.9]} 1... Nf6 {[%clk 0:03:00.2]} 2. c4 {[%clk 0:03:00.7]}
2... e6 {[%clk 0:02:59.2]} 3. Nc3 {[%clk 0:03:00.7]} 3... Bb4 {[%clk 0:02:58.9]}
4. Qc2 {[%clk 0:03:01.6]} 4... b6 {[%clk 0:02:58.1]} 5. a3 {[%clk 0:03:01]} 5...
Bxc3+ {[%clk 0:02:58.1]} 6. Qxc3 {[%clk 0:03:01.9]} 6... Bb7 {[%clk 0:02:58.3]}
7. f3 {[%clk 0:03:01.8]} 7... c5 {[%clk 0:02:58.5]} 8. dxc5 {[%clk 0:02:57.6]}
8... bxc5 {[%clk 0:02:58.4]} 9. Bg5 {[%clk 0:02:58]} 9... O-O {[%clk 0:02:57.5]}
10. e3 {[%clk 0:02:41.5]} 10... d6 {[%clk 0:02:54.5]} 11. Bd3 {[%clk 0:02:40.7]}
11... Nbd7 {[%clk 0:02:43.9]} 12. Ne2 {[%clk 0:02:39.8]} 12... Ne5 {[%clk
0:02:16.7]} 13. Bc2 {[%clk 0:02:25.8]} 13... h6 {[%clk 0:02:05.2]} 14. Bf4
{[%clk 0:02:19.9]} 14... Nc6 {[%clk 0:01:49.7]} 15. O-O {[%clk 0:02:14.8]} 15...
Qe7 {[%clk 0:01:45.3]} 16. b4 {[%clk 0:02:09.5]} 16... e5 {[%clk 0:01:40.5]} 17.
Bg3 {[%clk 0:02:08.5]} 17... Rad8 {[%clk 0:01:38.1]} 18. b5 {[%clk 0:02:05.3]}
18... Nb8 {[%clk 0:01:37.1]} 19. e4 {[%clk 0:01:33.3]} 19... Nbd7 {[%clk
0:01:33.7]} 20. Bh4 {[%clk 0:01:31.7]} 20... g5 {[%clk 0:01:33.1]} 21. Bf2
{[%clk 0:01:30.1]} 21... Nh5 {[%clk 0:01:33.3]} 22. Rfd1 {[%clk 0:01:28]} 22...
Kh8 {[%clk 0:01:31.3]} 23. g4 {[%clk 0:01:23.1]} 23... Nf4 {[%clk 0:01:29]} 24.
Nxf4 {[%clk 0:01:22.5]} 24... gxf4 {[%clk 0:01:28.6]} 25. Qe1 {[%clk 0:01:14.8]}
25... Rg8 {[%clk 0:01:26]} 26. h3 {[%clk 0:01:13.9]} 26... f5 {[%clk 0:01:23.4]}
27. Bh4 {[%clk 0:01:09.2]} 27... Nf6 {[%clk 0:01:23.2]} 28. Kg2 {[%clk 0:00:44]}
28... Qf7 {[%clk 0:01:07.4]} 29. Bxf6+ {[%clk 0:00:39]} 29... Qxf6 {[%clk
0:01:07.3]} 30. exf5 {[%clk 0:00:39.6]} 30... h5 {[%clk 0:01:07.1]} 31. Be4
{[%clk 0:00:38.6]} 31... hxg4 {[%clk 0:00:35.9]} 32. hxg4 {[%clk 0:00:36.1]}
32... Bc8 {[%clk 0:00:19.6]} 33. Qh1+ {[%clk 0:00:29.8]} 33... Kg7 {[%clk
0:00:20]} 34. Qh5 {[%clk 0:00:30.5]} 34... Rh8 {[%clk 0:00:19.4]} 35. Qg6+
{[%clk 0:00:30.6]} 35... Qxg6 {[%clk 0:00:19.9]} 36. fxg6 {[%clk 0:00:31.5]}
36... Be6 {[%clk 0:00:18.8]} 37. Bd3 {[%clk 0:00:28.4]} 37... Bd7 {[%clk
0:00:17.1]} 38. a4 {[%clk 0:00:25]} 38... Be8 {[%clk 0:00:17]} 39. a5 {[%clk
0:00:25.6]} 39... Bxg6 {[%clk 0:00:16.8]} 40. Bxg6 {[%clk 0:00:26.3]} 40... Kxg6
{[%clk 0:00:17.1]} 41. b6 {[%clk 0:00:25.9]} 41... axb6 {[%clk 0:00:17.6]} 42.
axb6 {[%clk 0:00:26.8]} 42... e4 {[%clk 0:00:14.9]} 43. fxe4 {[%clk 0:00:20.2]}
43... Kg5 {[%clk 0:00:15.4]} 44. b7 {[%clk 0:00:20.5]} 44... Kxg4 {[%clk
0:00:15.1]} 45. Ra3 {[%clk 0:00:14.5]} 45... Rh7 {[%clk 0:00:13.3]} 46. Rb3
{[%clk 0:00:14]} 46... Rb8 {[%clk 0:00:13.1]} 47. Rxd6 {[%clk 0:00:13.2]} 47...
Rhxb7 {[%clk 0:00:11.4]} 48. Rxb7 {[%clk 0:00:14]} 48... Rxb7 {[%clk 0:00:11.8]}
49. Rg6+ {[%clk 0:00:14.7]} 49... Kh5 {[%clk 0:00:12.6]} 50. Rg8 {[%clk
0:00:14.7]} 50... Rb3 {[%clk 0:00:12.7]} 51. Kf2 {[%clk 0:00:14.7]} 51... Re3
{[%clk 0:00:12.6]} 52. Rc8 {[%clk 0:00:15.5]} 52... Kg4 {[%clk 0:00:12.1]} 53.
Rxc5 {[%clk 0:00:15.5]} 53... Rc3 {[%clk 0:00:12.9]} 54. Rc8 {[%clk 0:00:10.5]}
54... Rc2+ {[%clk 0:00:12.7]} 55. Ke1 {[%clk 0:00:10.9]} 55... Kf3 {[%clk
0:00:12.7]} 56. Kd1 {[%clk 0:00:11.2]} 56... Ra2 {[%clk 0:00:11]} 57. e5 {[%clk
0:00:10.9]} 57... Ra5 {[%clk 0:00:06.6]} 58. c5 {[%clk 0:00:09.4]} 58... Ra6
{[%clk 0:00:05.8]} 59. c6 {[%clk 0:00:09]} 59... Ra5 {[%clk 0:00:03.8]} 60. Rd8
{[%clk 0:00:07.6]} 60... Rc5 {[%clk 0:00:03.9]} 61. e6 {[%clk 0:00:08]} 61...
Kg2 {[%clk 0:00:01.4]} 62. e7 {[%clk 0:00:06.7]} 62... f3 {[%clk 0:00:02.3]} 63.
e8=Q {[%clk 0:00:07.1]} 63... Rg5 {[%clk 0:00:03.2]} 64. Rd2+ {[%clk 0:00:06.3]}
64... f2 {[%clk 0:00:03.9]} 65. Rxf2+ {[%clk 0:00:06.3]} 65... Kxf2 {[%clk
0:00:04.1]} 66. Qf7+ {[%clk 0:00:05.3]} 66... Ke3 {[%clk 0:00:04.2]} 67. c7
{[%clk 0:00:05.3]} 67... Rc5 {[%clk 0:00:03.9]} 68. Qe7+ {[%clk 0:00:05]} 68...
Kd3 {[%clk 0:00:04.7]} 69. Qd6+ {[%clk 0:00:04.8]} 69... Ke4 {[%clk 0:00:04.7]}
70. Qxc5 {[%clk 0:00:05.3]} 70... Kd3 {[%clk 0:00:05.6]} 71. Qd6+ {[%clk
0:00:05.1]} 1-0

[Event "Early-Titled-Tuesday-Blitz-September-05-2023"]
[Site "Chess.com"]
[Date "2023.09.05"]
[Round "10"]
[White "Actuary44"]
[Black "Gauravthegm"]
[Result "1/2-1/2"]
[WhiteElo "2516"]
[BlackElo "2423"]
[TimeControl "180+1"]
[EndTime "9:56:06 PDT"]
[Termination "Game drawn - insufficient material"]

1. e4 {[%clk 0:03:00.9]} 1... c6 {[%clk 0:02:59.3]} 2. d4 {[%clk 0:03:01]} 2...
d5 {[%clk 0:03:00]} 3. Nc3 {[%clk 0:03:01.9]} 3... dxe4 {[%clk 0:02:57.5]} 4.
Nxe4 {[%clk 0:03:02.8]} 4... Nf6 {[%clk 0:02:56.7]} 5. Ng3 {[%clk 0:03:02.9]}
5... h5 {[%clk 0:02:56.3]} 6. Bd3 {[%clk 0:03:01.7]} 6... Qxd4 {[%clk
0:02:41.1]} 7. Nf3 {[%clk 0:03:01.8]} 7... Qd8 {[%clk 0:02:36.5]} 8. Bg5 {[%clk
0:02:59.3]} 8... Bg4 {[%clk 0:02:34.3]} 9. h3 {[%clk 0:02:58.4]} 9... Bxf3
{[%clk 0:02:31.3]} 10. Qxf3 {[%clk 0:02:59.3]} 10... Qd5 {[%clk 0:02:25.4]} 11.
Qe3 {[%clk 0:02:47.8]} 11... Nbd7 {[%clk 0:02:24.2]} 12. Rd1 {[%clk 0:02:45.2]}
12... Qe5 {[%clk 0:02:19.7]} 13. O-O {[%clk 0:02:42.7]} 13... Qxe3 {[%clk
0:02:18]} 14. Bxe3 {[%clk 0:02:43.6]} 14... e6 {[%clk 0:02:17.6]} 15. f4 {[%clk
0:02:38.5]} 15... Bc5 {[%clk 0:02:04.7]} 16. Bxc5 {[%clk 0:02:36]} 16... Nxc5
{[%clk 0:02:04.5]} 17. f5 {[%clk 0:02:36.9]} 17... h4 {[%clk 0:01:56.6]} 18. Ne2
{[%clk 0:02:35.3]} 18... e5 {[%clk 0:01:48.1]} 19. Bc4 {[%clk 0:02:28.4]} 19...
b5 {[%clk 0:01:37.6]} 20. b4 {[%clk 0:02:22.7]} 20... Na6 {[%clk 0:01:27.8]} 21.
Bb3 {[%clk 0:02:14.1]} 21... Nxb4 {[%clk 0:01:27.9]} 22. Nc3 {[%clk 0:02:08.3]}
22... O-O {[%clk 0:01:22.4]} 23. Rd6 {[%clk 0:02:02.6]} 23... Rad8 {[%clk
0:01:18.2]} 24. Rfd1 {[%clk 0:02:02]} 24... Nbd5 {[%clk 0:01:08.9]} 25. Bxd5
{[%clk 0:01:25]} 25... cxd5 {[%clk 0:00:37.9]} 26. Nxd5 {[%clk 0:01:11.5]} 26...
Nxd5 {[%clk 0:00:37]} 27. R6xd5 {[%clk 0:01:11.9]} 27... Rxd5 {[%clk 0:00:37.2]}
28. Rxd5 {[%clk 0:01:12.8]} 28... Rc8 {[%clk 0:00:34.8]} 29. Rxb5 {[%clk
0:00:58]} 29... Rxc2 {[%clk 0:00:34]} 30. Ra5 {[%clk 0:00:58.6]} 30... f6 {[%clk
0:00:26.4]} 31. Rxa7 {[%clk 0:00:58.3]} 31... Kh7 {[%clk 0:00:25.9]} 32. a4
{[%clk 0:00:56.1]} 32... Ra2 {[%clk 0:00:25.5]} 33. a5 {[%clk 0:00:56.3]} 33...
Kh6 {[%clk 0:00:25.8]} 34. a6 {[%clk 0:00:56.3]} 34... Kg5 {[%clk 0:00:16]} 35.
Rxg7+ {[%clk 0:00:55.1]} 35... Kxf5 {[%clk 0:00:16.7]} 36. a7 {[%clk 0:00:52.5]}
36... e4 {[%clk 0:00:16.6]} 37. Re7 {[%clk 0:00:21.5]} 37... Kf4 {[%clk
0:00:15.9]} 38. Rh7 {[%clk 0:00:13.3]} 38... e3 {[%clk 0:00:07.9]} 39. Rxh4+
{[%clk 0:00:08.8]} 39... Ke5 {[%clk 0:00:08.4]} 40. Kf1 {[%clk 0:00:04.8]} 40...
f5 {[%clk 0:00:08.1]} 41. Rh7 {[%clk 0:00:03.9]} 41... Kf4 {[%clk 0:00:07]} 42.
Re7 {[%clk 0:00:03.1]} 42... Ra1+ {[%clk 0:00:05.6]} 43. Ke2 {[%clk 0:00:03.4]}
43... Ra2+ {[%clk 0:00:06.1]} 44. Kd3 {[%clk 0:00:04]} 44... Ra4 {[%clk
0:00:05.4]} 45. Rxe3 {[%clk 0:00:03]} 45... Rxa7 {[%clk 0:00:04.8]} 46. Rf3+
{[%clk 0:00:03.6]} 46... Kg5 {[%clk 0:00:03.3]} 47. Ke2 {[%clk 0:00:04.5]} 47...
Ra2+ {[%clk 0:00:03.2]} 48. Kf1 {[%clk 0:00:04.8]} 48... Ra1+ {[%clk 0:00:03.8]}
49. Kf2 {[%clk 0:00:05]} 49... Ra2+ {[%clk 0:00:04.5]} 50. Kg3 {[%clk
0:00:05.5]} 50... Ra4 {[%clk 0:00:05.2]} 51. Kh2 {[%clk 0:00:05.9]} 51... f4
{[%clk 0:00:05.1]} 52. Rf2 {[%clk 0:00:06]} 52... Ra3 {[%clk 0:00:04.5]} 53. Rb2
{[%clk 0:00:06.5]} 53... Kh4 {[%clk 0:00:03.9]} 54. Rb5 {[%clk 0:00:06.9]} 54...
Ra4 {[%clk 0:00:04]} 55. Rf5 {[%clk 0:00:06.8]} 55... Rc4 {[%clk 0:00:04.1]} 56.
Kg1 {[%clk 0:00:06.6]} 56... Kg3 {[%clk 0:00:03.1]} 57. Rg5+ {[%clk 0:00:06.3]}
57... Kh4 {[%clk 0:00:03.5]} 58. Rg4+ {[%clk 0:00:06.8]} 58... Kh5 {[%clk
0:00:04]} 59. Kf2 {[%clk 0:00:07.4]} 59... Rd4 {[%clk 0:00:04.4]} 60. Kf3 {[%clk
0:00:07.8]} 60... Rd3+ {[%clk 0:00:04.4]} 61. Kxf4 {[%clk 0:00:07.8]} 61... Rd4+
{[%clk 0:00:05]} 62. Kg3 {[%clk 0:00:08.3]} 62... Rd3+ {[%clk 0:00:05.4]} 63.
Kh2 {[%clk 0:00:08.6]} 63... Rd2 {[%clk 0:00:05.9]} 64. Rg3 {[%clk 0:00:09.1]}
64... Rb2 {[%clk 0:00:06.3]} 65. Rf3 {[%clk 0:00:09.6]} 65... Rc2 {[%clk
0:00:06.9]} 66. Re3 {[%clk 0:00:09.7]} 66... Rd2 {[%clk 0:00:07.3]} 67. Kg3
{[%clk 0:00:10.2]} 67... Ra2 {[%clk 0:00:07.8]} 68. Rf3 {[%clk 0:00:10.7]} 68...
Ra1 {[%clk 0:00:08.1]} 69. Rf2 {[%clk 0:00:11]} 69... Ra3+ {[%clk 0:00:08.2]}
70. Kh2 {[%clk 0:00:11.3]} 70... Rb3 {[%clk 0:00:08.4]} 71. g4+ {[%clk
0:00:11.6]} 71... Kh4 {[%clk 0:00:07.6]} 72. Kg2 {[%clk 0:00:12.1]} 72... Rg3+
{[%clk 0:00:07.4]} 73. Kf1 {[%clk 0:00:10.9]} 73... Kxh3 {[%clk 0:00:07.1]} 74.
Rf4 {[%clk 0:00:08.7]} 74... Kh4 {[%clk 0:00:05.2]} 75. Kf2 {[%clk 0:00:08.5]}
75... Rxg4 {[%clk 0:00:05.6]} 76. Rxg4+ {[%clk 0:00:08.7]} 76... Kxg4 {[%clk
0:00:06.5]} 1/2-1/2

[Event "Early-Titled-Tuesday-Blitz-September-05-2023"]
[Site "Chess.com"]
[Date "2023.09.05"]
[Round "10"]
[White "Herzog2012"]
[Black "Keeper0416"]
[Result "1-0"]
[WhiteElo "2486"]
[BlackElo "2595"]
[TimeControl "180+1"]
[EndTime "9:56:15 PDT"]
[Termination "Herzog2012 won by checkmate"]

1. e4 {[%clk 0:03:00.9]} 1... a5 {[%clk 0:02:53.5]} 2. d4 {[%clk 0:02:59.9]}
2... c6 {[%clk 0:02:53.5]} 3. Nc3 {[%clk 0:02:54.7]} 3... d5 {[%clk 0:02:53.5]}
4. Nf3 {[%clk 0:02:52.3]} 4... g6 {[%clk 0:02:46.7]} 5. a4 {[%clk 0:02:43]} 5...
Bg7 {[%clk 0:02:42.7]} 6. h3 {[%clk 0:02:36.3]} 6... dxe4 {[%clk 0:02:27.8]} 7.
Nxe4 {[%clk 0:02:35.7]} 7... Nd7 {[%clk 0:02:28.3]} 8. Bc4 {[%clk 0:02:22.3]}
8... Ngf6 {[%clk 0:02:27.8]} 9. Nxf6+ {[%clk 0:02:14.6]} 9... Nxf6 {[%clk
0:02:28.7]} 10. O-O {[%clk 0:02:12.6]} 10... O-O {[%clk 0:02:29.2]} 11. c3
{[%clk 0:02:11.8]} 11... Nd5 {[%clk 0:02:29.4]} 12. Bg5 {[%clk 0:02:10.9]} 12...
h6 {[%clk 0:02:28.6]} 13. Bh4 {[%clk 0:02:09.8]} 13... Re8 {[%clk 0:02:24.1]}
14. Re1 {[%clk 0:02:06.4]} 14... g5 {[%clk 0:02:17.7]} 15. Bg3 {[%clk
0:02:05.1]} 15... Bf5 {[%clk 0:02:17.8]} 16. Ne5 {[%clk 0:01:50.2]} 16... e6
{[%clk 0:02:15.4]} 17. Qb3 {[%clk 0:01:42.1]} 17... Qe7 {[%clk 0:02:07.8]} 18.
Qd1 {[%clk 0:01:23.6]} 18... Nb6 {[%clk 0:02:02]} 19. Bd3 {[%clk 0:01:18.2]}
19... Bxd3 {[%clk 0:02:00.3]} 20. Qxd3 {[%clk 0:01:16.3]} 20... Rad8 {[%clk
0:02:01.2]} 21. Qf3 {[%clk 0:01:09.5]} 21... Qf6 {[%clk 0:01:58.8]} 22. Qxf6
{[%clk 0:01:05.1]} 22... Bxf6 {[%clk 0:01:58.1]} 23. Ng4 {[%clk 0:01:05.7]}
23... Bg7 {[%clk 0:01:55.5]} 24. Bc7 {[%clk 0:01:05.2]} 24... Nc4 {[%clk
0:01:54.7]} 25. Bxd8 {[%clk 0:01:04.6]} 25... Rxd8 {[%clk 0:01:55.6]} 26. Re2
{[%clk 0:01:04.3]} 26... Kf8 {[%clk 0:01:49.2]} 27. Ne3 {[%clk 0:01:04.5]} 27...
Nd6 {[%clk 0:01:49.7]} 28. Rd1 {[%clk 0:00:57.8]} 28... Ke7 {[%clk 0:01:48.7]}
29. d5 {[%clk 0:00:53.7]} 29... e5 {[%clk 0:01:30.9]} 30. dxc6 {[%clk
0:00:52.1]} 30... bxc6 {[%clk 0:01:31.8]} 31. Red2 {[%clk 0:00:47.9]} 31... Ke6
{[%clk 0:01:27.2]} 32. Nc4 {[%clk 0:00:29.8]} 32... Bf8 {[%clk 0:01:22.6]} 33.
Nxd6 {[%clk 0:00:23.9]} 33... Rxd6 {[%clk 0:01:17.1]} 34. Rxd6+ {[%clk
0:00:20.4]} 34... Bxd6 {[%clk 0:01:18]} 35. Kf1 {[%clk 0:00:17.9]} 35... c5
{[%clk 0:01:17.8]} 36. b3 {[%clk 0:00:14.4]} 36... f5 {[%clk 0:01:16.3]} 37. Ke2
{[%clk 0:00:14.1]} 37... e4 {[%clk 0:01:16.5]} 38. Ke3 {[%clk 0:00:10]} 38...
Bf4+ {[%clk 0:01:16.6]} 39. Ke2 {[%clk 0:00:09.8]} 39... Bd6 {[%clk 0:01:17.5]}
40. c4 {[%clk 0:00:09.3]} 40... Be7 {[%clk 0:01:15]} 41. Rd5 {[%clk 0:00:09.4]}
41... Bd6 {[%clk 0:01:15.2]} 42. f3 {[%clk 0:00:09.7]} 42... exf3+ {[%clk
0:01:12.8]} 43. Kxf3 {[%clk 0:00:07.8]} 43... Be7 {[%clk 0:01:13.1]} 44. g4
{[%clk 0:00:07]} 44... f4 {[%clk 0:01:12.8]} 45. Ke4 {[%clk 0:00:07.3]} 45...
Bd6 {[%clk 0:01:13.4]} 46. Rf5 {[%clk 0:00:06.8]} 46... Be7 {[%clk 0:01:07.9]}
47. Re5+ {[%clk 0:00:06.9]} 47... Kd6 {[%clk 0:01:07.7]} 48. Kf5 {[%clk
0:00:05.2]} 48... Kd7 {[%clk 0:01:00.2]} 49. Re6 {[%clk 0:00:06.1]} 49... Bd6
{[%clk 0:00:59.3]} 50. Re2 {[%clk 0:00:03.1]} 50... Be7 {[%clk 0:00:59.3]} 51.
Rd2+ {[%clk 0:00:03.3]} 51... Kc6 {[%clk 0:00:56.4]} 52. Ke6 {[%clk 0:00:03.6]}
52... Bf8 {[%clk 0:00:56.7]} 53. Re2 {[%clk 0:00:03.9]} 53... Bg7 {[%clk
0:00:56.1]} 54. Kf5 {[%clk 0:00:04.1]} 54... Bd4 {[%clk 0:00:56]} 55. Ke4 {[%clk
0:00:03.5]} 55... Kd6 {[%clk 0:00:55.2]} 56. Kf3 {[%clk 0:00:03.7]} 56... Be5
{[%clk 0:00:55.7]} 57. Rd2+ {[%clk 0:00:03.4]} 57... Bd4 {[%clk 0:00:56]} 58.
Ke4 {[%clk 0:00:03.6]} 58... Ke6 {[%clk 0:00:55.5]} 59. h4 {[%clk 0:00:03.1]}
59... Be3 {[%clk 0:00:45.9]} 60. Rh2 {[%clk 0:00:03.6]} 60... Kf6 {[%clk
0:00:39]} 61. hxg5+ {[%clk 0:00:03.6]} 61... Kxg5 {[%clk 0:00:39.9]} 62. Kf3
{[%clk 0:00:03.5]} 62... Kg6 {[%clk 0:00:37.7]} 63. Rh5 {[%clk 0:00:03.9]} 63...
Kg7 {[%clk 0:00:37.6]} 64. Re5 {[%clk 0:00:03.4]} 64... Kg6 {[%clk 0:00:37.8]}
65. Re8 {[%clk 0:00:03]} 65... Kg7 {[%clk 0:00:38]} 66. Ra8 {[%clk 0:00:03.2]}
66... Bd2 {[%clk 0:00:37.3]} 67. Rb8 {[%clk 0:00:03.3]} 67... Kf6 {[%clk
0:00:35.9]} 68. Rb5 {[%clk 0:00:04.2]} 68... Bb4 {[%clk 0:00:18.9]} 69. Kxf4
{[%clk 0:00:04.1]} 69... Ke6 {[%clk 0:00:19.6]} 70. Rb6+ {[%clk 0:00:04.4]}
70... Kf7 {[%clk 0:00:19.8]} 71. Kf5 {[%clk 0:00:03.7]} 71... Kg7 {[%clk
0:00:19.4]} 72. Rg6+ {[%clk 0:00:03.6]} 72... Kf7 {[%clk 0:00:20]} 73. Rxh6
{[%clk 0:00:03.5]} 73... Kg7 {[%clk 0:00:20.8]} 74. Ra6 {[%clk 0:00:04.1]} 74...
Kf7 {[%clk 0:00:21.5]} 75. Ra7+ {[%clk 0:00:05]} 75... Kg8 {[%clk 0:00:21.5]}
76. g5 {[%clk 0:00:05.9]} 76... Kf8 {[%clk 0:00:22.3]} 77. g6 {[%clk 0:00:06.8]}
77... Kg8 {[%clk 0:00:23.2]} 78. Kf6 {[%clk 0:00:06.7]} 78... Bc3+ {[%clk
0:00:23.9]} 79. Ke6 {[%clk 0:00:07.3]} 79... Bb4 {[%clk 0:00:24.8]} 80. Kd5
{[%clk 0:00:05.6]} 80... Kf8 {[%clk 0:00:24.5]} 81. Rc7 {[%clk 0:00:05.5]} 81...
Kg8 {[%clk 0:00:24.4]} 82. Rxc5 {[%clk 0:00:06.4]} 82... Kg7 {[%clk 0:00:25]}
83. Rb5 {[%clk 0:00:05.7]} 83... Kxg6 {[%clk 0:00:25.9]} 84. Rxb4 {[%clk
0:00:05]} 84... Kf6 {[%clk 0:00:26.4]} 85. Rb5 {[%clk 0:00:04.9]} 85... Ke7
{[%clk 0:00:27.3]} 86. c5 {[%clk 0:00:05.5]} 86... Kd7 {[%clk 0:00:28.2]} 87.
Rb7+ {[%clk 0:00:05.8]} 87... Kc8 {[%clk 0:00:28.7]} 88. c6 {[%clk 0:00:06.5]}
88... Kd8 {[%clk 0:00:29.3]} 89. Kd6 {[%clk 0:00:07.1]} 89... Kc8 {[%clk
0:00:30.2]} 90. Rb6 {[%clk 0:00:06.9]} 90... Kd8 {[%clk 0:00:30.4]} 91. Rb8#
{[%clk 0:00:07.8]} 1-0